[Event "Titled Tuesday Blitz May 9 Late 2023"]
[White "Ibarra Jerez, Jose Carlos"]
[Black "Andreikin, Dmitry"]
[WhiteFideId "2226332"]
[BlackFideId "4158814"]
[WhiteElo "2638"]
[BlackElo "2736"]
[Result "0-1"]
[Round "07"]
[TimeControl "180+2"]
[Date "2023.05.09"]
[WhiteClock "0:00:01"]
[BlackClock "0:00:10"]

1. e4 {[%clk 0:03:00]}  c5 {[%clk 0:03:00]} 2. Nf3 {[%clk 0:02:59]}  g6 {[%clk 0:03:00]} 3. c3 {[%clk 0:02:54]}  d5 {[%clk 0:02:56]} 4. exd5 {[%clk 0:02:54]}  Qxd5 {[%clk 0:02:57]} 5. d4 {[%clk 0:02:54]}  Bg7 {[%clk 0:02:57]} 6. Na3 {[%clk 0:02:52]}  Nf6 {[%clk 0:02:55]} 7. Bc4 {[%clk 0:02:42]}  Qe4+ {[%clk 0:02:56]} 8. Be3 {[%clk 0:02:41]}  O-O {[%clk 0:02:57]} 9. O-O {[%clk 0:02:31]}  cxd4 {[%clk 0:02:55]} 10. cxd4 {[%clk 0:02:30]}  Bg4 {[%clk 0:02:50]} 11. Bd3 {[%clk 0:02:17]}  Qd5 {[%clk 0:02:44]} 12. Be2 {[%clk 0:02:10]}  Nc6 {[%clk 0:02:39]} 13. h3 {[%clk 0:02:01]}  Bf5 {[%clk 0:02:37]} 14. Nb5 {[%clk 0:02:01]}  Rad8 {[%clk 0:02:34]} 15. Nc3 {[%clk 0:01:58]}  Qd7 {[%clk 0:02:34]} 16. Qb3 {[%clk 0:01:54]}  Be6 {[%clk 0:02:32]} 17. Qa4 {[%clk 0:01:52]}  Nd5 {[%clk 0:02:31]} 18. Rad1 {[%clk 0:01:45]}  a6 {[%clk 0:01:52]} 19. Ne4 {[%clk 0:01:38]}  Nxe3 {[%clk 0:01:30]} 20. fxe3 {[%clk 0:01:36]}  Bh6 {[%clk 0:01:02]} 21. Qa3 {[%clk 0:01:32]}  Bf5 {[%clk 0:00:47]} 22. Nc5 {[%clk 0:01:26]}  Qc7 {[%clk 0:00:47]} 23. Nh4 {[%clk 0:01:04]}  Bc8 {[%clk 0:00:44]} 24. Nf3 {[%clk 0:01:00]}  Qg3 {[%clk 0:00:44]} 25. Ne4 {[%clk 0:00:58]}  Qc7 {[%clk 0:00:42]} 26. Qc3 {[%clk 0:00:50]}  Qa5 {[%clk 0:00:41]} 27. Kf2 {[%clk 0:00:36]}  Qxa2 {[%clk 0:00:34]} 28. d5 {[%clk 0:00:29]}  Bg7 {[%clk 0:00:25]} 29. Qc5 {[%clk 0:00:14]}  Ne5 {[%clk 0:00:21]} 30. Nxe5 {[%clk 0:00:12]}  Bxe5 {[%clk 0:00:21]} 31. Qxe7 {[%clk 0:00:13]}  Rfe8 {[%clk 0:00:17]} 32. Nf6+ {[%clk 0:00:11]}  Bxf6 {[%clk 0:00:17]} 33. Qxf6 {[%clk 0:00:12]}  Rxd5 {[%clk 0:00:16]} 34. Kg1 {[%clk 0:00:06]}  Be6 {[%clk 0:00:15]} 35. Bf3 {[%clk 0:00:04]}  Rf5 {[%clk 0:00:14]} 36. Qc3 {[%clk 0:00:03]}  Rb5 {[%clk 0:00:14]} 37. Rd2 {[%clk 0:00:02]}  Qb3 {[%clk 0:00:13]} 38. Qf6 {[%clk 0:00:02]}  Qxe3+ {[%clk 0:00:12]} 39. Rdf2 {[%clk 0:00:03]}  a5 {[%clk 0:00:12]} 40. h4 {[%clk 0:00:03]}  b6 {[%clk 0:00:12]} 41. h5 {[%clk 0:00:02]}  Qe5 {[%clk 0:00:12]} 42. Qh4 {[%clk 0:00:02]}  Rxb2 {[%clk 0:00:12]} 43. hxg6 {[%clk 0:00:02]}  hxg6 {[%clk 0:00:12]} 44. Rxb2 {[%clk 0:00:03]}  Qxb2 {[%clk 0:00:12]} 45. Be4 {[%clk 0:00:03]}  Qd4+ {[%clk 0:00:12]} 46. Kh1 {[%clk 0:00:03]}  Bd5 {[%clk 0:00:10]} 47. Bxd5 {[%clk 0:00:01]}  Qxh4+ {[%clk 0:00:10]} 0-1


[Site "https://www.chess.com"]

[Event "Titled Tuesday Blitz May 9 Late 2023"]
[White "Sarana, Alexey"]
[Black "Carlsen, Magnus"]
[WhiteFideId "24133795"]
[BlackFideId "1503014"]
[WhiteElo "2714"]
[BlackElo "2852"]
[Result "1/2-1/2"]
[Round "07"]
[TimeControl "180+2"]
[Date "2023.05.09"]
[WhiteClock "0:00:06"]
[BlackClock "0:00:26"]

1. d4 {[%clk 0:03:00]}  a6 {[%clk 0:03:00]} 2. e4 {[%clk 0:02:59]}  e6 {[%clk 0:02:55]} 3. Bd3 {[%clk 0:02:59]}  h6 {[%clk 0:02:45]} 4. f4 {[%clk 0:02:55]}  c5 {[%clk 0:02:44]} 5. c3 {[%clk 0:02:52]}  cxd4 {[%clk 0:02:36]} 6. cxd4 {[%clk 0:02:53]}  Nc6 {[%clk 0:02:36]} 7. Nf3 {[%clk 0:02:53]}  Qb6 {[%clk 0:02:36]} 8. Bc2 {[%clk 0:02:40]}  g5 {[%clk 0:02:34]} 9. d5 {[%clk 0:01:52]}  g4 {[%clk 0:02:34]} 10. dxc6 {[%clk 0:01:50]}  gxf3 {[%clk 0:02:34]} 11. cxd7+ {[%clk 0:01:36]}  Bxd7 {[%clk 0:02:35]} 12. Qxf3 {[%clk 0:01:36]}  Nf6 {[%clk 0:02:36]} 13. Nc3 {[%clk 0:01:35]}  Bc6 {[%clk 0:02:35]} 14. Rb1 {[%clk 0:01:21]}  O-O-O {[%clk 0:02:34]} 15. Be3 {[%clk 0:01:20]}  Bc5 {[%clk 0:02:33]} 16. Bxc5 {[%clk 0:01:18]}  Qxc5 {[%clk 0:02:34]} 17. Rd1 {[%clk 0:01:11]}  h5 {[%clk 0:02:31]} 18. h3 {[%clk 0:01:10]}  h4 {[%clk 0:02:26]} 19. Qf2 {[%clk 0:01:02]}  Rxd1+ {[%clk 0:02:24]} 20. Bxd1 {[%clk 0:01:02]}  Qc4 {[%clk 0:02:03]} 21. Bb3 {[%clk 0:00:49]}  Qb4 {[%clk 0:02:02]} 22. O-O {[%clk 0:00:48]}  Nxe4 {[%clk 0:01:57]} 23. Nxe4 {[%clk 0:00:47]}  Qxe4 {[%clk 0:01:58]} 24. Re1 {[%clk 0:00:47]}  Qb4 {[%clk 0:01:53]} 25. Re5 {[%clk 0:00:34]}  Rd8 {[%clk 0:01:49]} 26. Re2 {[%clk 0:00:27]}  Qb5 {[%clk 0:01:40]} 27. f5 {[%clk 0:00:24]}  exf5 {[%clk 0:01:20]} 28. Bxf7 {[%clk 0:00:22]}  Kb8 {[%clk 0:01:19]} 29. Qxh4 {[%clk 0:00:15]}  Rd1+ {[%clk 0:01:09]} 30. Re1 {[%clk 0:00:13]}  Qc5+ {[%clk 0:01:01]} 31. Kh1 {[%clk 0:00:12]}  Qc2 {[%clk 0:00:39]} 32. Qg3+ {[%clk 0:00:08]}  f4 {[%clk 0:00:40]} 33. Qg8+ {[%clk 0:00:08]}  Ka7 {[%clk 0:00:40]} 34. Rxd1 {[%clk 0:00:09]}  Qxd1+ {[%clk 0:00:41]} 35. Kh2 {[%clk 0:00:09]}  Qd2 {[%clk 0:00:41]} 36. Qg5 {[%clk 0:00:08]}  Qxb2 {[%clk 0:00:38]} 37. Qc5+ {[%clk 0:00:04]}  Kb8 {[%clk 0:00:37]} 38. Qd6+ {[%clk 0:00:04]}  Ka8 {[%clk 0:00:37]} 39. Qf8+ {[%clk 0:00:04]}  Ka7 {[%clk 0:00:37]} 40. Qc5+ {[%clk 0:00:05]}  Ka8 {[%clk 0:00:26]} 41. Qf8+ {[%clk 0:00:05]}  Ka7 {[%clk 0:00:26]} 42. Qc5+ {[%clk 0:00:06]} 1/2-1/2


[Site "https://www.chess.com"]

[Event "Titled Tuesday Blitz May 9 Late 2023"]
[White "Mazurkiewicz, Michal"]
[Black "Xiong, Jeffery"]
[WhiteFideId "1124943"]
[BlackFideId "2047640"]
[WhiteElo "2054"]
[BlackElo "2726"]
[Result "1/2-1/2"]
[Round "07"]
[TimeControl "180+2"]
[Date "2023.05.09"]
[WhiteClock "0:00:34"]
[BlackClock "0:02:21"]

1. e4 {[%clk 0:03:00]}  c6 {[%clk 0:02:59]} 2. d3 {[%clk 0:02:59]}  g6 {[%clk 0:02:58]} 3. g3 {[%clk 0:02:59]}  Bg7 {[%clk 0:02:59]} 4. Bg2 {[%clk 0:02:59]}  d5 {[%clk 0:02:58]} 5. Nd2 {[%clk 0:02:58]}  e5 {[%clk 0:02:58]} 6. Ngf3 {[%clk 0:02:58]}  Ne7 {[%clk 0:02:57]} 7. O-O {[%clk 0:02:51]}  O-O {[%clk 0:02:57]} 8. Re1 {[%clk 0:02:49]}  d4 {[%clk 0:02:57]} 9. a4 {[%clk 0:02:39]}  c5 {[%clk 0:02:57]} 10. Nc4 {[%clk 0:02:38]}  Nbc6 {[%clk 0:02:58]} 11. Bd2 {[%clk 0:02:38]}  h6 {[%clk 0:02:56]} 12. b3 {[%clk 0:02:29]}  Be6 {[%clk 0:02:55]} 13. Nh4 {[%clk 0:02:27]}  g5 {[%clk 0:02:50]} 14. Nf5 {[%clk 0:02:18]}  Nxf5 {[%clk 0:02:47]} 15. exf5 {[%clk 0:02:18]}  Bxf5 {[%clk 0:02:48]} 16. Bxc6 {[%clk 0:02:12]}  bxc6 {[%clk 0:02:49]} 17. Nxe5 {[%clk 0:02:13]}  Qd5 {[%clk 0:02:49]} 18. Qf3 {[%clk 0:02:06]}  Be6 {[%clk 0:02:43]} 19. Qxd5 {[%clk 0:01:57]}  cxd5 {[%clk 0:02:43]} 20. f4 {[%clk 0:01:49]}  g4 {[%clk 0:02:36]} 21. Nc6 {[%clk 0:01:18]}  Bf6 {[%clk 0:02:31]} 22. f5 {[%clk 0:01:09]}  Bd7 {[%clk 0:02:31]} 23. Ne7+ {[%clk 0:01:06]}  Bxe7 {[%clk 0:02:31]} 24. Rxe7 {[%clk 0:01:06]}  Bxf5 {[%clk 0:02:32]} 25. Bxh6 {[%clk 0:01:05]}  Rfe8 {[%clk 0:02:32]} 26. Rae1 {[%clk 0:01:05]}  Rxe7 {[%clk 0:02:30]} 27. Rxe7 {[%clk 0:01:04]}  c4 {[%clk 0:02:30]} 28. Re5 {[%clk 0:00:34]}  Be6 {[%clk 0:02:21]} 1/2-1/2


[Site "https://www.chess.com"]

[Event "Titled Tuesday Blitz May 9 Late 2023"]
[White "Naroditsky, Daniel"]
[Black "Annaberdiyev, Meylis"]
[WhiteFideId "2026961"]
[BlackFideId "14000563"]
[WhiteElo "2633"]
[BlackElo "2416"]
[Result "1-0"]
[Round "07"]
[TimeControl "180+2"]
[Date "2023.05.09"]
[WhiteClock "0:00:09"]
[BlackClock "0:00:00"]

1. e4 {[%clk 0:03:00]}  c5 {[%clk 0:02:59]} 2. c3 {[%clk 0:03:01]}  Nf6 {[%clk 0:02:56]} 3. e5 {[%clk 0:03:01]}  Nd5 {[%clk 0:02:56]} 4. Nf3 {[%clk 0:03:02]}  d6 {[%clk 0:02:56]} 5. d4 {[%clk 0:03:02]}  cxd4 {[%clk 0:02:56]} 6. cxd4 {[%clk 0:03:02]}  Nc6 {[%clk 0:02:55]} 7. Bc4 {[%clk 0:03:02]}  dxe5 {[%clk 0:02:56]} 8. dxe5 {[%clk 0:03:03]}  Be6 {[%clk 0:02:56]} 9. O-O {[%clk 0:02:56]}  g6 {[%clk 0:02:50]} 10. Qe2 {[%clk 0:02:45]}  Nc7 {[%clk 0:02:48]} 11. Rd1 {[%clk 0:02:35]}  Qc8 {[%clk 0:02:48]} 12. Nc3 {[%clk 0:02:24]}  Bg7 {[%clk 0:02:46]} 13. Bf4 {[%clk 0:02:17]}  Bxc4 {[%clk 0:02:24]} 14. Qxc4 {[%clk 0:02:18]}  Qe6 {[%clk 0:02:24]} 15. Qe4 {[%clk 0:02:05]}  h6 {[%clk 0:02:05]} 16. Ne2 {[%clk 0:01:22]}  O-O {[%clk 0:01:44]} 17. Ned4 {[%clk 0:01:22]}  Nxd4 {[%clk 0:01:45]} 18. Nxd4 {[%clk 0:01:23]}  Qb6 {[%clk 0:01:45]} 19. Be3 {[%clk 0:01:21]}  Qa6 {[%clk 0:01:28]} 20. h4 {[%clk 0:01:08]}  Ne6 {[%clk 0:01:24]} 21. Nf3 {[%clk 0:01:01]}  Rad8 {[%clk 0:01:18]} 22. a3 {[%clk 0:01:01]}  Rxd1+ {[%clk 0:00:57]} 23. Rxd1 {[%clk 0:01:02]}  Rd8 {[%clk 0:00:58]} 24. Rc1 {[%clk 0:01:03]}  Qb5 {[%clk 0:00:52]} 25. b4 {[%clk 0:00:57]}  a6 {[%clk 0:00:47]} 26. h5 {[%clk 0:00:57]}  g5 {[%clk 0:00:46]} 27. g3 {[%clk 0:00:50]}  Qd5 {[%clk 0:00:46]} 28. Qxd5 {[%clk 0:00:36]}  Rxd5 {[%clk 0:00:47]} 29. Rc8+ {[%clk 0:00:36]}  Kh7 {[%clk 0:00:47]} 30. Re8 {[%clk 0:00:33]}  Rd7 {[%clk 0:00:38]} 31. g4 {[%clk 0:00:33]}  Nc7 {[%clk 0:00:32]} 32. Rc8 {[%clk 0:00:31]}  Ne6 {[%clk 0:00:29]} 33. a4 {[%clk 0:00:26]}  f6 {[%clk 0:00:21]} 34. exf6 {[%clk 0:00:23]}  Bxf6 {[%clk 0:00:22]} 35. b5 {[%clk 0:00:22]}  axb5 {[%clk 0:00:19]} 36. axb5 {[%clk 0:00:23]}  Kg7 {[%clk 0:00:19]} 37. b6 {[%clk 0:00:23]}  Kf7 {[%clk 0:00:18]} 38. Nd2 {[%clk 0:00:20]}  Bd4 {[%clk 0:00:11]} 39. Nc4 {[%clk 0:00:21]}  Bxe3 {[%clk 0:00:10]} 40. Ne5+ {[%clk 0:00:19]}  Kg7 {[%clk 0:00:08]} 41. Nxd7 {[%clk 0:00:20]}  Bf4 {[%clk 0:00:08]} 42. Nc5 {[%clk 0:00:14]}  Nd4 {[%clk 0:00:04]} 43. Nxb7 {[%clk 0:00:13]}  Nf3+ {[%clk 0:00:05]} 44. Kg2 {[%clk 0:00:12]}  Ne5 {[%clk 0:00:06]} 45. Nc5 {[%clk 0:00:08]}  Nxg4 {[%clk 0:00:00]} 46. Ne6+ {[%clk 0:00:09]} 1-0


[Site "https://www.chess.com"]

[Event "Titled Tuesday Blitz May 9 Late 2023"]
[White "Paravyan, David"]
[Black "Kuznetsov, Felix"]
[WhiteFideId "4194985"]
[BlackFideId "34147990"]
[WhiteElo "2563"]
[BlackElo "2281"]
[Result "1-0"]
[Round "07"]
[TimeControl "180+2"]
[Date "2023.05.09"]
[WhiteClock "0:01:36"]
[BlackClock "0:00:02"]

1. e4 {[%clk 0:03:00]}  c5 {[%clk 0:02:59]} 2. Nf3 {[%clk 0:03:01]}  Nc6 {[%clk 0:03:00]} 3. Bb5 {[%clk 0:03:00]}  d6 {[%clk 0:03:00]} 4. O-O {[%clk 0:03:00]}  Bd7 {[%clk 0:03:00]} 5. Re1 {[%clk 0:03:01]}  Nf6 {[%clk 0:03:00]} 6. Nc3 {[%clk 0:02:59]}  g6 {[%clk 0:02:52]} 7. Bxc6 {[%clk 0:02:53]}  Bxc6 {[%clk 0:02:52]} 8. d4 {[%clk 0:02:53]}  cxd4 {[%clk 0:02:52]} 9. Nxd4 {[%clk 0:02:54]}  Bg7 {[%clk 0:02:40]} 10. Bg5 {[%clk 0:02:53]}  O-O {[%clk 0:02:40]} 11. Qd2 {[%clk 0:02:52]}  Rc8 {[%clk 0:02:38]} 12. Rad1 {[%clk 0:02:53]}  Qa5 {[%clk 0:02:37]} 13. Nd5 {[%clk 0:02:36]}  Qd8 {[%clk 0:02:35]} 14. Nxf6+ {[%clk 0:02:34]}  exf6 {[%clk 0:02:33]} 15. Bf4 {[%clk 0:02:25]}  d5 {[%clk 0:02:24]} 16. Nxc6 {[%clk 0:02:24]}  bxc6 {[%clk 0:02:24]} 17. exd5 {[%clk 0:02:24]}  cxd5 {[%clk 0:02:23]} 18. c3 {[%clk 0:02:24]}  Qb6 {[%clk 0:02:15]} 19. Re2 {[%clk 0:02:21]}  f5 {[%clk 0:02:09]} 20. Be3 {[%clk 0:02:20]}  Qa6 {[%clk 0:02:05]} 21. a3 {[%clk 0:02:19]}  Rfe8 {[%clk 0:02:00]} 22. Rde1 {[%clk 0:02:15]}  d4 {[%clk 0:01:34]} 23. Bxd4 {[%clk 0:02:11]}  Rxe2 {[%clk 0:01:32]} 24. Rxe2 {[%clk 0:02:12]}  Bxd4 {[%clk 0:01:31]} 25. cxd4 {[%clk 0:02:13]}  Qc4 {[%clk 0:01:20]} 26. Re1 {[%clk 0:02:11]}  Rd8 {[%clk 0:01:17]} 27. Rd1 {[%clk 0:02:11]}  Qd5 {[%clk 0:01:15]} 28. h3 {[%clk 0:02:11]}  h5 {[%clk 0:01:14]} 29. Qc3 {[%clk 0:02:07]}  f4 {[%clk 0:01:09]} 30. Qf3 {[%clk 0:02:02]}  Qxf3 {[%clk 0:00:53]} 31. gxf3 {[%clk 0:02:03]}  Kf8 {[%clk 0:00:52]} 32. d5 {[%clk 0:02:02]}  Ke7 {[%clk 0:00:48]} 33. Rd4 {[%clk 0:02:02]}  g5 {[%clk 0:00:46]} 34. Ra4 {[%clk 0:02:02]}  Rd7 {[%clk 0:00:46]} 35. Ra6 {[%clk 0:02:02]}  f6 {[%clk 0:00:33]} 36. b4 {[%clk 0:02:01]}  Rxd5 {[%clk 0:00:29]} 37. Rxa7+ {[%clk 0:02:01]}  Ke6 {[%clk 0:00:30]} 38. Kg2 {[%clk 0:02:02]}  Rd3 {[%clk 0:00:22]} 39. b5 {[%clk 0:02:01]}  Rb3 {[%clk 0:00:21]} 40. a4 {[%clk 0:02:01]}  f5 {[%clk 0:00:21]} 41. Ra6+ {[%clk 0:01:43]}  Ke5 {[%clk 0:00:20]} 42. b6 {[%clk 0:01:41]}  g4 {[%clk 0:00:20]} 43. Ra5+ {[%clk 0:01:37]}  Kf6 {[%clk 0:00:19]} 44. Rb5 {[%clk 0:01:37]}  gxh3+ {[%clk 0:00:15]} 45. Kh2 {[%clk 0:01:36]}  Rxf3 {[%clk 0:00:14]} 46. b7 {[%clk 0:01:36]}  Rxf2+ {[%clk 0:00:02]} 47. Kxh3 {[%clk 0:01:36]} 1-0


[Site "https://www.chess.com"]

[Event "Titled Tuesday Blitz May 9 Late 2023"]
[White "Sieciechowicz, Marcin"]
[Black "Terry, Renato"]
[WhiteFideId "1130170"]
[BlackFideId "3803457"]
[WhiteElo "2302"]
[BlackElo "2575"]
[Result "0-1"]
[Round "07"]
[TimeControl "180+2"]
[Date "2023.05.09"]
[WhiteClock "0:00:00"]
[BlackClock "0:00:06"]

1. d4 {[%clk 0:03:00]}  e6 {[%clk 0:03:00]} 2. Bf4 {[%clk 0:03:01]}  Nf6 {[%clk 0:03:00]} 3. e3 {[%clk 0:03:01]}  b6 {[%clk 0:03:00]} 4. Nf3 {[%clk 0:03:01]}  Bb7 {[%clk 0:03:01]} 5. Bd3 {[%clk 0:03:01]}  Bd6 {[%clk 0:03:01]} 6. Bg3 {[%clk 0:03:00]}  Bxg3 {[%clk 0:03:01]} 7. hxg3 {[%clk 0:03:00]}  h6 {[%clk 0:03:01]} 8. c4 {[%clk 0:03:00]}  d6 {[%clk 0:03:02]} 9. Nc3 {[%clk 0:03:01]}  Nbd7 {[%clk 0:03:03]} 10. Qe2 {[%clk 0:03:00]}  e5 {[%clk 0:03:02]} 11. d5 {[%clk 0:02:54]}  Nc5 {[%clk 0:03:01]} 12. Bc2 {[%clk 0:02:53]}  a5 {[%clk 0:03:01]} 13. Nd2 {[%clk 0:02:52]}  Bc8 {[%clk 0:03:00]} 14. e4 {[%clk 0:02:50]}  Bg4 {[%clk 0:02:58]} 15. f3 {[%clk 0:02:49]}  Bd7 {[%clk 0:02:59]} 16. O-O-O {[%clk 0:02:43]}  g6 {[%clk 0:02:54]} 17. Qe3 {[%clk 0:02:41]}  h5 {[%clk 0:02:50]} 18. g4 {[%clk 0:02:41]}  Qe7 {[%clk 0:02:49]} 19. gxh5 {[%clk 0:02:38]}  Rxh5 {[%clk 0:02:41]} 20. g4 {[%clk 0:02:38]}  Rxh1 {[%clk 0:02:41]} 21. Rxh1 {[%clk 0:02:38]}  O-O-O {[%clk 0:02:41]} 22. Nb3 {[%clk 0:02:27]}  Na6 {[%clk 0:02:35]} 23. Nxa5 {[%clk 0:02:03]}  bxa5 {[%clk 0:02:29]} 24. Qa7 {[%clk 0:02:03]}  Nb8 {[%clk 0:02:30]} 25. Bd3 {[%clk 0:01:55]}  Rf8 {[%clk 0:02:03]} 26. Qxa5 {[%clk 0:01:21]}  c5 {[%clk 0:01:54]} 27. Qb6 {[%clk 0:01:12]}  Ne8 {[%clk 0:01:53]} 28. Kc2 {[%clk 0:00:31]}  Qd8 {[%clk 0:01:50]} 29. Qa7 {[%clk 0:00:28]}  Qc7 {[%clk 0:01:49]} 30. Qa8 {[%clk 0:00:24]}  Qb7 {[%clk 0:01:47]} 31. Qa5 {[%clk 0:00:23]}  Na6 {[%clk 0:01:45]} 32. a3 {[%clk 0:00:22]}  Nec7 {[%clk 0:01:29]} 33. Rh7 {[%clk 0:00:22]}  Be8 {[%clk 0:01:25]} 34. Na4 {[%clk 0:00:19]}  Kb8 {[%clk 0:01:21]} 35. Kc3 {[%clk 0:00:17]}  Bxa4 {[%clk 0:01:15]} 36. Qxa4 {[%clk 0:00:18]}  Ne8 {[%clk 0:01:16]} 37. b4 {[%clk 0:00:16]}  Nf6 {[%clk 0:01:14]} 38. Rh2 {[%clk 0:00:16]}  Kc7 {[%clk 0:01:14]} 39. Rb2 {[%clk 0:00:12]}  cxb4+ {[%clk 0:00:57]} 40. axb4 {[%clk 0:00:13]}  Ra8 {[%clk 0:00:56]} 41. Qa5+ {[%clk 0:00:13]}  Qb6 {[%clk 0:00:56]} 42. Qxb6+ {[%clk 0:00:14]}  Kxb6 {[%clk 0:00:57]} 43. c5+ {[%clk 0:00:14]}  Kc7 {[%clk 0:00:50]} 44. Ra2 {[%clk 0:00:15]}  Kb7 {[%clk 0:00:50]} 45. Ra5 {[%clk 0:00:11]}  Ra7 {[%clk 0:00:46]} 46. Rb5+ {[%clk 0:00:08]}  Ka8 {[%clk 0:00:36]} 47. Rb6 {[%clk 0:00:08]}  Nc7 {[%clk 0:00:29]} 48. Rxd6 {[%clk 0:00:08]}  Ra3+ {[%clk 0:00:30]} 49. Kd2 {[%clk 0:00:09]}  Ra2+ {[%clk 0:00:28]} 50. Ke3 {[%clk 0:00:09]}  Nh7 {[%clk 0:00:19]} 51. Rd7 {[%clk 0:00:09]}  Kb8 {[%clk 0:00:19]} 52. d6 {[%clk 0:00:04]}  Ne6 {[%clk 0:00:17]} 53. Bc4 {[%clk 0:00:04]}  Ra3+ {[%clk 0:00:17]} 54. Kf2 {[%clk 0:00:05]}  Nhg5 {[%clk 0:00:18]} 55. Bxe6 {[%clk 0:00:04]}  fxe6 {[%clk 0:00:18]} 56. Rg7 {[%clk 0:00:04]}  Rd3 {[%clk 0:00:07]} 57. Rxg6 {[%clk 0:00:04]}  Nh3+ {[%clk 0:00:07]} 58. Ke2 {[%clk 0:00:04]}  Nf4+ {[%clk 0:00:08]} 59. Kf2 {[%clk 0:00:04]}  Nxg6 {[%clk 0:00:08]} 60. Ke2 {[%clk 0:00:04]}  Rd4 {[%clk 0:00:06]} 61. Ke3 {[%clk 0:00:04]}  Rxb4 {[%clk 0:00:06]} 62. c6 {[%clk 0:00:00]}  Rb3+ {[%clk 0:00:06]} 0-1


[Site "https://www.chess.com"]

[Event "Titled Tuesday Blitz May 9 Late 2023"]
[White "Klukin, Kirill"]
[Black "Rasulov, Vugar"]
[WhiteFideId "24199273"]
[BlackFideId "13402390"]
[WhiteElo "2344"]
[BlackElo "2509"]
[Result "0-1"]
[Round "07"]
[TimeControl "180+2"]
[Date "2023.05.09"]
[WhiteClock "0:00:05"]
[BlackClock "0:01:40"]

1. d4 {[%clk 0:03:00]}  Nf6 {[%clk 0:02:59]} 2. Nf3 {[%clk 0:03:01]}  e6 {[%clk 0:02:59]} 3. e3 {[%clk 0:03:01]}  c5 {[%clk 0:02:59]} 4. Bd3 {[%clk 0:03:02]}  Nc6 {[%clk 0:02:59]} 5. O-O {[%clk 0:03:03]}  d5 {[%clk 0:02:59]} 6. b3 {[%clk 0:03:03]}  cxd4 {[%clk 0:02:59]} 7. exd4 {[%clk 0:03:03]}  g6 {[%clk 0:02:59]} 8. Bb2 {[%clk 0:03:03]}  Bg7 {[%clk 0:02:59]} 9. Nbd2 {[%clk 0:03:04]}  O-O {[%clk 0:02:59]} 10. a3 {[%clk 0:03:04]}  b6 {[%clk 0:02:54]} 11. Qe2 {[%clk 0:03:04]}  Bb7 {[%clk 0:02:54]} 12. Ne5 {[%clk 0:03:04]}  Rc8 {[%clk 0:02:51]} 13. Rac1 {[%clk 0:03:02]}  Nh5 {[%clk 0:02:48]} 14. g3 {[%clk 0:02:56]}  Nf6 {[%clk 0:02:45]} 15. Rfe1 {[%clk 0:02:54]}  Ne7 {[%clk 0:02:45]} 16. Ba6 {[%clk 0:02:50]}  Qc7 {[%clk 0:02:42]} 17. a4 {[%clk 0:02:43]}  Nf5 {[%clk 0:02:41]} 18. Ndf3 {[%clk 0:02:23]}  Ne4 {[%clk 0:02:40]} 19. Ba3 {[%clk 0:02:22]}  Rfd8 {[%clk 0:02:36]} 20. Bd3 {[%clk 0:02:22]}  Nxd4 {[%clk 0:02:34]} 21. Nxd4 {[%clk 0:02:18]}  Qxe5 {[%clk 0:02:35]} 22. Bb2 {[%clk 0:02:03]}  Qb8 {[%clk 0:02:29]} 23. Ba1 {[%clk 0:01:30]}  Nc5 {[%clk 0:02:29]} 24. Nf3 {[%clk 0:01:25]}  d4 {[%clk 0:02:21]} 25. Ng5 {[%clk 0:01:15]}  Nxd3 {[%clk 0:02:15]} 26. cxd3 {[%clk 0:01:08]}  e5 {[%clk 0:02:12]} 27. f4 {[%clk 0:00:40]}  h6 {[%clk 0:02:07]} 28. Ne4 {[%clk 0:00:19]}  exf4 {[%clk 0:02:04]} 29. Rf1 {[%clk 0:00:18]}  Rxc1 {[%clk 0:02:03]} 30. Rxc1 {[%clk 0:00:17]}  fxg3 {[%clk 0:02:03]} 31. Nxg3 {[%clk 0:00:17]}  Re8 {[%clk 0:02:01]} 32. Qg4 {[%clk 0:00:16]}  Qe5 {[%clk 0:02:00]} 33. Rf1 {[%clk 0:00:11]}  Qe3+ {[%clk 0:01:59]} 34. Rf2 {[%clk 0:00:10]}  Bc8 {[%clk 0:01:49]} 35. Qh4 {[%clk 0:00:04]}  Be6 {[%clk 0:01:49]} 36. Bb2 {[%clk 0:00:04]}  Qxd3 {[%clk 0:01:49]} 37. Ne4 {[%clk 0:00:03]}  Bf5 {[%clk 0:01:40]} 38. Nf6+ {[%clk 0:00:04]}  Bxf6 {[%clk 0:01:40]} 39. Qxf6 {[%clk 0:00:04]}  Re1+ {[%clk 0:01:40]} 40. Kg2 {[%clk 0:00:05]}  Qh3# {[%clk 0:01:40]} 0-1


[Site "https://www.chess.com"]